[Event "Susha Chess Rapid 2022"]
[Site "Shusha"]
[Date "2022.09.22"]
[Round "3.2"]
[White "Radjabov, Teimour"]
[Black "Vidit, Santosh Gujrathi"]
[Result "1/2-1/2"]
[ECO "D26"]
[WhiteElo "2747"]
[BlackElo "2710"]
[Annotator "TA"]
[PlyCount "31"]
[EventDate "2022.09.21"]
[EventType "tourn"]
[EventCountry "AZE"]
[SourceTitle "playchess.com"]
[Source "ChessBase"]
[SourceQuality "1"]
[TimeControl "900+10"]

{[%evp 15,31,17,7,7,6,4,13,3,11,22,16,5,7,0,0,0,0,0]} 1. d4 {[%emt 0:00:02]} d5 {[%emt 0:00:03]} 2. c4 {[%emt 0:00:01]} dxc4 {[%emt 0:00:02]} 3. Nf3 {[%emt 0:00:03]} Nf6 {[%emt 0:00:01]} 4. e3 {[%emt 0:00:02]} e6 {[%emt 0:00:02]} 5. Bxc4 {[%emt 0:00:02]} c5 {[%emt 0:00:01]} 6. O-O {[%emt 0:00:09]} Nc6 {[%emt 0:00:02]} 7. dxc5 {[%emt 0:00:19]} Qxd1 {[%emt 0:00:04]} 8. Rxd1 {[%emt 0:00:02]} Bxc5 {[%emt 0:00:02] The position is equal.} 9. b3 {[%emt 0:00:08] D26: Queen's Gambit Accepted: 4 e3 e6 5 Bxc5 c5 sidelines.} O-O {[%emt 0:00:03]} 10. Bb2 {[%emt 0:00:34]} Be7 {[%emt 0:00:04]} 11. Nc3 {[%emt 0:00:16][%cal Bb1c3,Bc3b5,Bb5c7][%mdl 32] [#]} Bd7 $146 {[%emt 0:02:27]} ({Predecessor:} 11... a6 12. Rac1 b5 13. Bd3 Bb7 14. Ne2 Rfd8 15. Ng3 Nb4 16. Bb1 Rxd1+ 17. Rxd1 Rd8 18. Rxd8+ Bxd8 19. Ne5 Bb6 20. a3 {½-½ (20) Loman,R-Walbrodt,C Dresden 1892}) 12. Nb5 {[%emt 0:00:14]} Rfd8 {[%emt 0:00:23]} 13. Rac1 {[%emt 0:00:50]} Ne8 {[%emt 0:02:23]} 14. Ne5 {[%emt 0:03:15]} Nxe5 {[%emt 0:00:03]} 15. Bxe5 {[%emt 0:00:02]} a6 {[%emt 0:04:44]} 16. Nc7 {[%emt 0:02:02] An uneventful encounter.  Weighted Error Value: White=0.03 (flawless) /Black=0.02 (flawless)} 1/2-1/2

[Event "Susha Chess Rapid 2022"]
[Site "Shusha"]
[Date "2022.09.22"]
[Round "3.3"]
[White "Mamedyarov, Shakhriyar"]
[Black "Wang, Hao"]
[Result "1-0"]
[ECO "D35"]
[WhiteElo "2757"]
[BlackElo "2722"]
[Annotator "TA"]
[PlyCount "131"]
[EventDate "2022.09.21"]
[EventType "tourn"]
[EventCountry "AZE"]
[SourceTitle "playchess.com"]
[Source "ChessBase"]
[SourceQuality "1"]
[TimeControl "900+10"]

{[%evp 14,131,27,28,33,30,33,27,27,29,32,29,34,26,35,0,7,0,45,36,54,45,68,40,40,45,50,31,60,30,39,30,37,0,67,0,157,144,131,128,135,128,128,129,129,122,166,142,154,149,193,194,177,138,124,130,145,130,218,242,239,227,235,235,219,202,180,143,214,205,316,305,335,149,162,27,67,34,29,8,8,8,8,8,48,8,8,8,8,8,24,0,0,0,28,8,45,8,72,72,124,124,124,124,1245,952,29949,29949,29955,29950,29965,29964,29963,29961,29956,29958,29961,29958,29942,5392]} 1. d4 {[%emt 0:00:01]} Nf6 {[%emt 0:00:06]} 2. c4 {[%emt 0:00:03]} e6 {[%emt 0:00:01]} 3. Nc3 {[%emt 0:00:03]} d5 {[%emt 0:00:02]} 4. cxd5 {[%emt 0:00:10]} exd5 {[%emt 0:00:02]} 5. Bg5 {[%emt 0:00:10]} c6 {[%emt 0:00:02]} 6. e3 {[%emt 0:00:10]} Be7 {[%emt 0:00:02] 6...Bd6 is the recent fashion.} 7. Bd3 {[%emt 0:00:06]} h6 {[%emt 0:00:11]} 8. Bf4 {[%emt 0:01:18]} Bd6 {[%emt 0:00:02] D35: Queen's Gambit Declined: Exchange Variation.} 9. Nge2 {[%emt 0:00:05]} O-O {[%emt 0:00:12]} 10. h3 {[%emt 0:00:12]} Re8 {[%emt 0:00:14] White has an edge.} 11. Qc2 {[%emt 0:00:13]} a5 {[%emt 0:00:17] [#]} 12. a3 $146 {[%emt 0:00:05]} ({Predecessor:} 12. O-O Nh5 13. Bxd6 Qxd6 14. Na4 Nd7 15. Rfc1 Qe7 16. Kf1 Qd6 17. g4 Nhf6 18. Kg2 {1-0 (57) Johansson,L (2473)-Vogel,R (2447) Germany 2022}) 12... Bxf4 {[%emt 0:00:48]} 13. Nxf4 {[%emt 0:00:04]} Na6 {[%emt 0:00:03]} 14. g4 {[%emt 0:02:02]} Qd6 {[%emt 0:00:14] aiming for ...Qxf4.} 15. Nce2 {[%emt 0:00:32]} Ne4 {[%emt 0:00:22]} 16. Rg1 {[%emt 0:01:22]} Bd7 {[%emt 0:02:12]} 17. h4 {[%emt 0:02:50]} Qe7 $1 {[%emt 0:01:29]} 18. Bxe4 {[%emt 0:00:18]} (18. g5 {is interesting.} hxg5 19. hxg5 g6 20. Ng3) 18... Qxe4 {[%emt 0:00:04]} 19. Qxe4 {[%emt 0:00:08]} Rxe4 {[%emt 0:01:42]} 20. Kd2 {[%emt 0:00:14]} g6 {[%emt 0:00:06]} 21. g5 {[%emt 0:00:52] Strongly threatening h5.} h5 $1 {[%emt 0:00:03]} 22. b4 {[%emt 0:01:27]} Nc7 {[%emt 0:06:00]} 23. Rgb1 {[%emt 0:00:53]} (23. Nc3 $5 {[%cal Rc3e4]}) 23... a4 {[%emt 0:01:33]} ({Better is} 23... Nb5 $11) 24. b5 {[%emt 0:02:30]} (24. Nc3 $1 $14) 24... cxb5 $2 {[%emt 0:01:36]} (24... Nxb5 $11 25. Rxb5 cxb5) 25. Nc3 $16 {[%emt 0:00:52][%csl LRd5,LRe4]} Rxf4 {[%emt 0:00:02]} 26. exf4 {[%emt 0:00:00]} Bc6 {[%emt 0:00:12]} 27. f5 {[%emt 0:00:51]} gxf5 {[%emt 0:00:02]} 28. Ne2 {[%emt 0:00:46]} Ne6 {[%emt 0:00:03] Inhibits Nf4.} 29. Rb4 {[%emt 0:00:04][%mdl 1024] White has strong compensation.} f4 {[%emt 0:01:15]} 30. Re1 {[%emt 0:00:04]} Kg7 {[%emt 0:00:22]} 31. Nc3 {[%emt 0:00:19]} Rd8 {[%emt 0:00:20]} 32. Re5 {[%emt 0:00:14]} (32. Nxb5 Bxb5 33. Rxe6 (33. Rxb5 Nxd4 34. Rxb7 Nf3+ 35. Ke2 Nxe1 $17) 33... fxe6 $11) 32... Kg6 {[%emt 0:00:13]} 33. Kd3 {[%emt 0:00:31]} Ng7 {[%emt 0:00:17]} 34. Ne2 {[%emt 0:00:07] White is more active.} ({But not} 34. Nxb5 Nf5 $14) 34... Ne6 {[%emt 0:00:01]} 35. Rb1 {[%emt 0:00:23]} Rd6 {[%emt 0:00:20] [#]} (35... Re8 $16 {might work better.}) 36. Rxe6+ $1 $18 {[%emt 0:00:20][%mdl 576] Remove Defender} fxe6 {[%emt 0:00:01]} 37. Nxf4+ {[%emt 0:00:02][%mdl 4096] Endgame KRB-KRN} Kf5 {[%emt 0:00:15]} 38. Nxh5 {[%emt 0:00:01] Black must now prevent Rg1.} Rd8 {[%emt 0:00:09][%cal Ob5b4]} 39. Re1 {[%emt 0:00:17]} b4 {[%emt 0:00:10]} 40. Ng7+ {[%emt 0:00:42]} ({Don't play} 40. axb4 Bd7 $16) 40... Kg6 {[%emt 0:00:08]} (40... Kg4 $16) 41. Nxe6 {[%emt 0:00:03]} Ra8 {[%emt 0:00:14]} (41... Rc8 $142 42. axb4 Bb5+ 43. Kd2 Rc4) 42. axb4 {[%emt 0:00:11]} a3 {[%emt 0:00:02]} 43. Ra1 {[%emt 0:00:28]} (43. Kc2 $18) 43... Kf5 {[%emt 0:00:07]} 44. Nc5 {[%emt 0:00:06]} (44. Nc7 $18 Rc8 45. b5 (45. Rxa3 Rxc7 46. Ra8 Rh7 $17) 45... Rxc7 46. bxc6 bxc6 47. Rxa3) 44... Rh8 {[%emt 0:00:18]} 45. Kc3 {[%emt 0:00:18] Threatens to win with Rh1.} Rxh4 {[%emt 0:00:03]} 46. b5 {[%emt 0:00:02]} (46. Rg1 {feels hotter.} a2 47. g6 Be8 48. Nxb7 Bxg6 49. Ra1) 46... Bxb5 {[%emt 0:00:07]} 47. Nxb7 {[%emt 0:00:01] And now Nd6+ would win.} Kxg5 {[%emt 0:00:08]} 48. Rxa3 {[%emt 0:00:11]} Rf4 {[%emt 0:00:12]} 49. Ra2 {[%emt 0:00:26]} (49. Ra5 $5 {[%cal Ra5b5]} Rf3+ 50. Kb4 $14) 49... Bc4 {[%emt 0:00:08]} 50. Rb2 {[%emt 0:00:02]} Rf6 {[%emt 0:00:09]} 51. Nc5 {[%emt 0:00:08][%cal Oc5e4] Ne4+! is the strong threat.} Kf4 {[%emt 0:00:12] Inhibits Ne4.} 52. Na4 {[%emt 0:00:18]} Ke4 {[%emt 0:00:08]} 53. Nc5+ {[%emt 0:00:09]} Kf4 {[%emt 0:00:07]} 54. Nd7 {[%emt 0:00:05]} Rc6 {[%emt 0:00:17]} (54... Rf7 $5 {[%cal Rf7d7]} 55. Ne5 Rc7 $11) 55. Rb6 {[%emt 0:00:13]} (55. Rb8 $5 {[%cal Rb8f8]}) 55... Rc7 {[%emt 0:00:30]} (55... Bb5+ $11 56. Kb4 Rxb6 57. Nxb6 Be8) 56. Rf6+ $16 {[%emt 0:00:04]} Kg4 {[%emt 0:00:11]} ({Black should try} 56... Kg5 57. f4+ Kh4) 57. Ne5+ {[%emt 0:00:18]} Kg5 {[%emt 0:00:02] [#]} 58. Rf8 {[%emt 0:00:11]} Rb7 $2 {[%emt 0:00:13][%mdl 8192] Loses the game.} (58... Bf1+ $16 59. Kb4 Kh6) 59. f4+ $18 {[%emt 0:00:06][%cal Bf2f4,Bf4f5][%mdl 32]} Kh6 {[%emt 0:00:13]} 60. Nxc4 {[%emt 0:00:02] KRN-KR. White mates.} Rc7 {[%emt 0:00:01] [#]} 61. Rf5 $1 {[%emt 0:00:02]} dxc4 {[%emt 0:00:07]} (61... Rxc4+ 62. Kd3) 62. Rc5 {[%emt 0:00:18]} Rf7 {[%emt 0:00:01]} 63. f5 {[%emt 0:00:01]} Kg5 {[%emt 0:00:02]} 64. Kxc4 {[%emt 0:00:05]} Kf4 {[%emt 0:00:19]} 65. Re5 {[%emt 0:00:14]} Kg5 {[%emt 0:00:37]} 66. Kd5 {[%emt 0:00:10] Weighted Error Value: White=0.16 (very precise) /Black=0.31} (66. d5 $142 Kf6 67. Re2 Ra7 68. d6 Ra4+ 69. Kc5 Ra5+ 70. Kb6 Rd5 71. Kc7 Kxf5 72. d7) 1-0

[Event "Susha Chess Rapid 2022"]
[Site "Shusha"]
[Date "2022.09.22"]
[Round "3.4"]
[White "Kasimdzhanov, Rustam"]
[Black "Maghsoodloo, Parham"]
[Result "1/2-1/2"]
[ECO "B30"]
[WhiteElo "2670"]
[BlackElo "2721"]
[Annotator "TA"]
[PlyCount "80"]
[EventDate "2022.09.21"]
[EventType "tourn"]
[EventCountry "AZE"]
[SourceTitle "playchess.com"]
[Source "ChessBase"]
[SourceQuality "1"]
[TimeControl "900+10"]

{[%evp 9,80,44,45,16,19,18,17,9,20,-102,-41,-37,-36,-34,0,-14,0,0,0,-7,0,-6,0,0,0,0,0,0,0,-21,8,-24,0,-25,-14,-8,-6,-7,-2,-34,0,0,0,0,0,-6,0,0,0,-8,-8,-21,-15,-15,-15,-25,-31,-29,-31,-31,0,0,29,29,73,56,75,33,48,0,0,0,0]} 1. e4 {[%emt 0:00:01]} c5 {[%emt 0:00:02]} 2. Nf3 {[%emt 0:00:02]} Nc6 {[%emt 0:00:01]} 3. Bb5 {[%emt 0:00:01]} e5 {[%emt 0:00:02]} 4. O-O {[%emt 0:00:06]} Bd6 {[%emt 0:00:01]} 5. c3 {[%emt 0:00:01]} a6 {[%emt 0:00:06]} 6. Bxc6 {[%emt 0:00:23] B30: Sicilian: 2...Nc6 3 Bb5, lines without ...g6.} dxc6 {[%emt 0:00:21]} 7. d4 {[%emt 0:00:01]} exd4 {[%emt 0:00:13]} 8. cxd4 {[%emt 0:00:02]} Bg4 {[%emt 0:00:44]} 9. Be3 {[%emt 0:01:44]} (9. Nbd2 $11 {remains equal.}) 9... cxd4 {[%emt 0:00:57]} ({Black should try} 9... Bxf3 $17 10. Qxf3 (10. gxf3 Qh4 $17) 10... cxd4 11. Bxd4 {[#]} Bxh2+ $1 12. Kxh2 Qxd4) 10. Qxd4 $15 {[%emt 0:00:11]} Bxf3 {[%emt 0:00:02]} 11. gxf3 {[%emt 0:01:54] [#]} Qf6 $146 {[%emt 0:00:02]} ({Predecessor:} 11... Qc7 12. h3 Ne7 13. Nd2 Rd8 14. Qc3 Be5 15. Qc2 Rd6 16. Rfd1 Rg6+ 17. Kf1 Qc8 {0-1 (47) Anfinogenov,A (2054)-Scerbin,D (2365) Nalchik 2015}) 12. Qxf6 {[%emt 0:00:53]} Nxf6 {[%emt 0:00:02]} 13. Nd2 {[%emt 0:00:08]} O-O-O {[%emt 0:00:22]} 14. Nc4 {[%emt 0:00:58] [#] Strongly threatening e5.} Bc7 {[%emt 0:00:01]} 15. a4 {[%emt 0:00:08]} Nd7 {[%emt 0:01:09]} 16. b4 {[%emt 0:00:42][%cal Ob4b5]} Ne5 {[%emt 0:00:33]} 17. Nxe5 {[%emt 0:00:05]} Bxe5 {[%emt 0:00:02]} 18. Rac1 {[%emt 0:00:02]} Bd4 {[%emt 0:00:04]} 19. Bf4 {[%emt 0:00:30]} g5 {[%emt 0:00:49]} 20. Bg3 {[%emt 0:00:25]} ({Not} 20. Bxg5 $2 Rdg8 21. h4 h6 $19) 20... Kd7 {[%emt 0:03:15]} 21. h4 {[%emt 0:00:30]} h6 {[%emt 0:00:25]} 22. Kg2 {[%emt 0:00:07]} Ke6 {[%emt 0:00:06]} 23. Rh1 {[%emt 0:00:29]} f6 {[%emt 0:00:35]} (23... f5 {is more complex.} 24. exf5+ Kxf5 25. Rc4 Rd5) 24. Rc2 {[%emt 0:02:30]} Rhe8 {[%emt 0:03:11]} 25. hxg5 {[%emt 0:03:04]} hxg5 {[%emt 0:00:02]} 26. Rh7 {[%emt 0:00:02]} Re7 {[%emt 0:00:01]} 27. Rh6 {[%emt 0:00:01]} Kf7 {[%emt 0:01:51]} 28. Rh7+ {[%emt 0:00:15]} Ke6 {[%emt 0:00:01]} 29. Rh6 {[%emt 0:00:03]} Red7 {[%emt 0:03:06]} 30. Kh3 {[%emt 0:01:42]} a5 {[%emt 0:00:49]} 31. bxa5 {[%emt 0:02:04][%cal Oa5a6]} Ra8 {[%emt 0:00:01]} 32. Kg4 {[%emt 0:00:42][%cal Oe4e5]} Rxa5 {[%emt 0:00:03]} 33. Rc4 {[%emt 0:00:01]} c5 {[%emt 0:00:53]} 34. Rh1 {[%emt 0:00:11]} b5 {[%emt 0:00:34]} 35. axb5 {[%emt 0:00:05][%cal Ba4b5,Bb5b6][%mdl 32]} Rb7 {[%emt 0:00:11]} 36. b6 {[%emt 0:00:08]} Rb5 {[%emt 0:00:18]} 37. Bc7 {[%emt 0:00:12]} Rb4 {[%emt 0:00:14]} 38. Rhc1 {[%emt 0:00:15]} Bxf2 {[%emt 0:00:04]} 39. Rxc5 {[%emt 0:00:27]} (39. R4c2 $14 {feels stronger.} Bd4 40. Rd1) 39... Bxc5 $11 {[%emt 0:00:02]} 40. Rxc5 {[%emt 0:00:01]} R4xb6 {[%emt 0:00:01] Weighted Error Value: White=0.15 (very precise) /Black=0.13 (very precise)} 1/2-1/2

[Event "Susha Chess Rapid 2022"]
[Site "Shusha"]
[Date "2022.09.22"]
[Round "3.5"]
[White "Guseinov, Gadir"]
[Black "Mamedov, Rauf"]
[Result "1/2-1/2"]
[ECO "B35"]
[WhiteElo "2661"]
[BlackElo "2646"]
[Annotator "TA"]
[PlyCount "39"]
[EventDate "2022.09.21"]
[EventType "tourn"]
[EventCountry "AZE"]
[SourceTitle "playchess.com"]
[Source "ChessBase"]
[SourceQuality "1"]
[TimeControl "900+10"]

{[%evp 22,39,25,35,22,31,33,0,22,0,-21,-16,0,-6,-11,-6,-7,-35,-6,-58]} 1. e4 {[%emt 0:00:02]} c5 {[%emt 0:00:03]} 2. Nf3 {[%emt 0:00:03]} Nc6 {[%emt 0:00:23]} 3. Nc3 {[%emt 0:00:08]} g6 {[%emt 0:00:21]} 4. d4 {[%emt 0:00:03]} cxd4 {[%emt 0:00:02]} 5. Nxd4 {[%emt 0:00:01]} Bg7 {[%emt 0:00:03]} 6. Be3 {[%emt 0:00:05]} Nf6 {[%emt 0:00:01]} 7. Bc4 {[%emt 0:00:20]} O-O {[%emt 0:00:12]} 8. Bb3 {[%emt 0:00:04]} d6 {[%emt 0:00:04]} 9. f3 {[%emt 0:00:12]} Bd7 {[%emt 0:00:04]} 10. Qd2 {[%emt 0:00:10]} Nxd4 {[%emt 0:00:14]} 11. Bxd4 {[%emt 0:00:02]} b5 {[%emt 0:00:04]} 12. a4 {[%emt 0:00:42]} bxa4 $1 {[%emt 0:01:47][%mdl 4] now scores much better than the old 12...b4. B77: Sicilian Dragon: Yugoslav Attack, 9 Bc4 sidelines.} 13. Bxa4 {[%emt 0:00:07]} Be6 {[%emt 0:00:11]} 14. Bc6 {[%emt 0:02:01]} Rc8 {[%emt 0:00:21]} 15. Bd5 {[%emt 0:00:17] [#]} Bxd5 $146 {[%emt 0:00:38]} ({Predecessor:} 15... Rb8 16. Bxe6 fxe6 17. Ra2 a5 18. O-O Rb4 19. Ne2 e5 20. Bc3 Qb6+ 21. Kh1 Nxe4 {½-½ (72) Zambrana,O (2480)-Fier,A (2601) Campinas 2010}) 16. exd5 {[%emt 0:00:04]} a5 {[%emt 0:00:35]} 17. O-O {[%emt 0:00:23]} Nd7 {[%emt 0:00:47]} 18. Bxg7 {[%emt 0:00:29]} Kxg7 {[%emt 0:00:01]} 19. Qd4+ {[%emt 0:00:02]} Kg8 {[%emt 0:00:08]} 20. Ra2 {[%emt 0:00:57] Weighted Error Value: White=0.14 (very precise) /Black=0.05 (flawless)} ({White should try} 20. Rf2 $11) 1/2-1/2

[Event "Susha Chess Rapid 2022"]
[Site "Shusha"]
[Date "2022.09.22"]
[Round "5.2"]
[White "Durarbayli, Vasif"]
[Black "Vidit, Santosh Gujrathi"]
[Result "0-1"]
[ECO "C65"]
[WhiteElo "2628"]
[BlackElo "2710"]
[Annotator "TA"]
[PlyCount "125"]
[EventDate "2022.09.21"]
[EventType "tourn"]
[EventCountry "AZE"]
[SourceTitle "playchess.com"]
[Source "ChessBase"]
[SourceQuality "1"]
[TimeControl "900+10"]

{[%evp 9,125,18,18,22,25,11,18,10,8,15,18,23,13,0,10,0,14,16,11,12,14,0,0,-8,0,0,-14,-43,0,0,-1,-39,-55,-85,-24,-25,-12,-155,-149,-152,-145,-334,-323,-934,14,6,6,6,13,6,16,13,13,0,0,0,0,0,0,0,0,0,0,0,0,0,0,0,0,0,0,0,0,0,0,0,0,0,0,0,0,0,-13,-633,-472,-690,-652,-328,0,-2787,-2302,-12839,-12838,-12841,-12841,-12842,-12843,-12845,-12846,-12846,-12847,-12847,-12847,-12849,-12849,-27998,-27999,-27996,-27996,-27998,-27998,-27999,-27999,-27999,-27999,-27997,-27997,-27998]} 1. e4 {[%emt 0:00:01]} e5 {[%emt 0:00:03]} 2. Nf3 {[%emt 0:00:02]} Nc6 {[%emt 0:00:02]} 3. Bb5 {[%emt 0:00:01]} Nf6 {[%emt 0:00:03]} 4. d3 {[%emt 0:00:01]} Bc5 {[%emt 0:00:03]} 5. Bxc6 {[%emt 0:00:02]} dxc6 {[%emt 0:00:02]} 6. O-O {[%emt 0:00:01] C65: Ruy Lopez: Berlin Defence (3...Nf6), unusual lines and 4 0-0 Bc5.} Bd6 {[%emt 0:00:10]} 7. Nbd2 {[%emt 0:00:02]} Be6 {[%emt 0:00:10]} 8. b3 {[%emt 0:00:01] The position is equal.} Nd7 {[%emt 0:00:19]} 9. Nc4 {[%emt 0:00:02]} Bxc4 {[%emt 0:00:23]} 10. bxc4 {[%emt 0:00:01]} Qe7 {[%emt 0:00:06]} 11. Be3 {[%emt 0:01:30]} O-O {[%emt 0:00:15]} 12. Rb1 {[%emt 0:00:12]} b6 {[%emt 0:00:02] [#]} 13. g3 $146 {[%emt 0:00:28]} ({Predecessor:} 13. h3 Rfe8 14. a4 a5 15. g3 Bc5 16. Bd2 Bd6 17. Nh4 g6 18. Qg4 h5 19. Qe2 {½-½ (41) Garcia Rodriguez,I (2326)-Diaz Rubi,F (2304) ICCF email 2019}) 13... f5 {[%emt 0:03:00]} 14. exf5 {[%emt 0:00:22]} Rxf5 {[%emt 0:00:04]} 15. Nh4 {[%emt 0:00:33]} Rf7 {[%emt 0:00:06]} 16. Qg4 {[%emt 0:00:17]} Nf6 {[%emt 0:01:43]} 17. Qg5 {[%emt 0:02:48] And now Nf5 would win.} Qe6 {[%emt 0:00:44]} 18. Rbe1 {[%emt 0:00:33]} (18. Qf5 $5 {[%cal Rf5e6]} Qd7 19. h3 $11) 18... Qh3 {[%emt 0:01:15]} 19. f3 {[%emt 0:00:14]} g6 {[%emt 0:00:55]} 20. Bf2 {[%emt 0:01:47]} (20. Nxg6 $5 hxg6 21. Qxg6+ Kf8 22. d4 $11) 20... Raf8 {[%emt 0:00:31]} 21. Qd2 {[%emt 0:01:28][%cal Oc4c5]} Nh5 {[%emt 0:02:08] Black is more active.} (21... g5 $1 $17 {[%cal Rg5h4]} 22. Ng2 (22. Qxg5+ $2 Rg7 $19) 22... h6) 22. Re4 $11 {[%emt 0:00:44]} Be7 {[%emt 0:01:11]} (22... Rxf3 $2 23. Nxf3 Rxf3 24. Qe2 $18) 23. Be3 {[%emt 0:02:40]} (23. Qe2 $11) 23... Nf6 $1 $17 {[%emt 0:02:48]} 24. Rxe5 {[%emt 0:00:30]} Ng4 {[%emt 0:00:02][%mdl 64] Pin} 25. Re4 {[%emt 0:00:57]} (25. Rxe7 $17 Rxe7 26. Bg5) 25... Bxh4 $19 {[%emt 0:00:15]} 26. Bd4 $2 {[%emt 0:03:08] [#]} (26. Rxg4 $2 Rxf3 27. Rxf3 Rxf3 28. Rxg6+ hxg6 $19) (26. Bf4 Rxf4 27. gxf4) 26... Rxf3 $2 {[%emt 0:00:57]} (26... Bxg3 $1 $19 27. Qg2 Qxh2+ 28. Qxh2 Nxh2) 27. Rxf3 $11 {[%emt 0:00:10]} Rxf3 {[%emt 0:00:02][%csl Gh3][%cal Rf3f1] Chess con chili.} 28. Qg2 {[%emt 0:00:48] Prevents Rf1+.} Qxg2+ {[%emt 0:02:17]} 29. Kxg2 {[%emt 0:00:00]} Rf7 {[%emt 0:00:05][%cal Oh4g3]} 30. Rxg4 {[%emt 0:00:20][%mdl 4096] Endgame KRB-KRB} Bf6 {[%emt 0:00:12]} 31. Re4 {[%emt 0:00:21]} Bxd4 {[%emt 0:00:13]} 32. Rxd4 {[%emt 0:00:02] KR-KR} Kg7 {[%emt 0:00:03]} 33. c5 {[%emt 0:00:22]} g5 {[%emt 0:00:17]} ({Don't take} 33... bxc5 34. Rc4 $16 (34. Ra4 Kf6 $16)) 34. Ra4 {[%emt 0:00:08]} a5 {[%emt 0:00:02]} 35. cxb6 {[%emt 0:00:01]} cxb6 {[%emt 0:00:01]} 36. Rd4 {[%emt 0:00:01]} Kg6 {[%emt 0:00:13]} 37. g4 {[%emt 0:00:07]} Rf6 {[%emt 0:00:05]} 38. Rd8 {[%emt 0:00:11]} c5 {[%emt 0:00:25]} 39. c4 {[%emt 0:00:28]} h6 {[%emt 0:00:04]} 40. h3 {[%emt 0:00:07]} Kf7 {[%emt 0:00:05]} 41. Rd7+ {[%emt 0:00:16]} Ke6 {[%emt 0:00:11]} 42. Rd5 {[%emt 0:00:04]} Rf8 {[%emt 0:00:15]} 43. h4 {[%emt 0:00:11]} gxh4 {[%emt 0:00:14]} 44. Kh3 {[%emt 0:00:13]} a4 {[%emt 0:00:14][%cal Ba5a4,Ba4a3][%mdl 32]} 45. Kxh4 {[%emt 0:00:13]} Rf2 {[%emt 0:00:09]} 46. a3 {[%emt 0:00:01][%mdl 8192] [#] Black continues to play with concentration.} (46. Kg3 $11 Rxa2 47. Rh5) 46... Ra2 $1 $19 {[%emt 0:00:03]} 47. Kh5 {[%emt 0:00:18]} (47. Kg3 $142 Rxa3 48. Rh5) 47... Rxa3 {[%emt 0:00:03] Hoping for ...Ra1.} 48. Kxh6 {[%emt 0:00:02] [#]} Ra1 $2 {[%emt 0:00:23]} (48... b5 $1 $19 {[%cal Rb5b4]} 49. Rxc5 b4) 49. Rd8 $2 {[%emt 0:00:11][%mdl 8192]} (49. Rh5 $11) 49... a3 {[%emt 0:00:06]} 50. Ra8 {[%emt 0:00:15]} a2 {[%emt 0:00:07]} 51. Kg5 {[%emt 0:00:13]} Ke5 {[%emt 0:00:02]} 52. Ra3 {[%emt 0:00:05]} Kd4 {[%emt 0:00:04]} 53. Kg6 {[%emt 0:00:08]} Rg1 {[%emt 0:00:10]} 54. Rxa2 {[%emt 0:00:00]} Rxg4+ {[%emt 0:00:09]} (54... Kxd3 55. g5 Kxc4 56. Kf6) 55. Kf5 {[%emt 0:00:01]} Rg3 {[%emt 0:00:16]} 56. Rb2 {[%emt 0:00:10]} Rxd3 {[%emt 0:00:17]} 57. Rxb6 {[%emt 0:00:01]} Rf3+ {[%emt 0:00:11] Black mates.} 58. Ke6 {[%emt 0:00:22]} Kxc4 {[%emt 0:00:02]} 59. Rb1 {[%emt 0:00:01]} Kd4 {[%emt 0:00:12]} 60. Rd1+ {[%emt 0:00:32]} Rd3 {[%emt 0:00:04]} 61. Rc1 {[%emt 0:00:19]} c4 {[%emt 0:00:08][%cal Bc5c4,Bc4c3][%mdl 32]} 62. Kd6 {[%emt 0:00:01]} c3 {[%emt 0:00:01]} 63. Kc6 {[%emt 0:00:02] Weighted Error Value: White=0.65/Black=0.17 (very precise)} 0-1